fUST/lending_fUST_20250430
["ID","MTS","AMOUNT","RATE_DAILY","PERIOD"]
[359351008,1745949044369,-151.0,0.00029995,7]
[359351010,1745949044378,-400.0,0.00029995,2]
[359351012,1745949044387,-400.0,0.00029995,2]
[359351014,1745949044397,-400.0,0.00029995,2]
[359351016,1745949044407,-700.21,0.00029995,2]
[359351018,1745949044417,-400.0,0.00029995,2]
[359351020,1745949044427,-2492.26,0.00029995,2]
[359351022,1745949044437,-400.0,0.00029995,2]
[359351025,1745949044447,-151.0,0.00029995,7]
[359351027,1745949044458,-151.0,0.00029995,7]
[359351029,1745949044467,-151.0,0.00029995,7]
[359351031,1745949044477,-151.0,0.00029995,7]
[359351033,1745949044486,-151.0,0.00029995,7]
[359351035,1745949044496,-500.0,0.00029995,2]
[359351037,1745949044505,-151.0,0.00029995,7]
[359351039,1745949044515,-151.0,0.00029995,7]
[359351041,1745949044524,-151.0,0.00029995,7]
[359351042,1745949044533,-151.0,0.00029995,7]
[359351044,1745949044543,-258.760826,0.00029995,7]
[359351046,1745949044552,-1940.6,0.00029995,2]
[359351048,1745949044562,-2836.62,0.00029995,2]
[359351050,1745949044571,-151.0,0.00029995,7]
[359351051,1745949044581,-151.0,0.00029995,7]
[359351052,1745949044593,-151.0,0.00029995,7]
[359351053,1745949044603,-151.0,0.00029995,7]
[359351054,1745949044612,-151.0,0.00029995,7]
[359351055,1745949044622,-151.0,0.00029995,7]
[359351057,1745949044631,-299.680141,0.00029995,7]
[359351059,1745949044641,-400.0,0.00029995,2]
[359351061,1745949044651,-198.93,0.00029995,2]
[359351063,1745949044661,-524.67,0.00029995,2]
[359351065,1745949044671,-400.0,0.00029995,2]
[359351067,1745949044681,-151.0,0.00029995,7]
[359351069,1745949044691,-254.5402,0.00029995,7]
[359351071,1745949044701,-400.0,0.00029995,2]
[359351073,1745949044710,-400.0,0.00029995,2]
[359351075,1745949044719,-516.42716977,0.00029995,2]
[359351077,1745949044729,-2407.53,0.00029995,2]
[359351079,1745949044738,-875.83,0.00029995,2]
[359351081,1745949044747,-694.47,0.00029995,2]
[359351083,1745949044757,-1572.722036,0.00029995,7]
[359351085,1745949044767,-1572.722036,0.00029995,7]
[359351087,1745949044776,-1572.722036,0.00029995,7]
[359351089,1745949044785,-1572.722036,0.00029995,7]
[359351091,1745949044795,-1572.722036,0.00029995,7]
[359351093,1745949044805,-1572.722036,0.00029995,7]
[359351095,1745949044815,-1572.722036,0.00029995,7]
[359351097,1745949044824,-564.51,0.00029995,2]
[359351099,1745949044833,-1572.722036,0.00029995,7]
[359351101,1745949044843,-400.0,0.00029995,2]
[359351103,1745949044853,-1572.722036,0.00029995,7]
[359351105,1745949044863,-1572.722036,0.00029995,7]
[359351107,1745949044872,-1572.722036,0.00029995,7]
[359351109,1745949044881,-1572.722036,0.00029995,7]
[359351111,1745949044891,-1572.722036,0.00029995,7]
[359351113,1745949044900,-1572.722043,0.00029995,7]
[359351115,1745949044910,-400.0,0.00029995,2]
[359351117,1745949044920,-197.088114,0.00029995,7]
[359351119,1745949044929,-197.088114,0.00029995,7]
[359351121,1745949044938,-1536.02,0.00029995,2]
[359351123,1745949044948,-197.088114,0.00029995,7]
[359351125,1745949044957,-197.088114,0.00029995,7]
[359351127,1745949044967,-197.088114,0.00029995,7]
[359351129,1745949044976,-197.088114,0.00029995,7]
[359351131,1745949044986,-197.088114,0.00029995,7]
[359351133,1745949044995,-197.088114,0.00029995,7]
[359351135,1745949045005,-197.088114,0.00029995,7]
[359351137,1745949045014,-197.088116,0.00029995,7]
[359351139,1745949045024,-500.0,0.00029995,2]
[359351141,1745949045034,-506.95,0.00029995,2]
[359351143,1745949045047,-400.0,0.00029995,2]
[359351145,1745949045057,-500.0,0.00029995,2]
[359351147,1745949045066,-2505.77,0.00029995,2]
[359351149,1745949045075,-151.0,0.00029995,7]
[359351151,1745949045084,-168.418237,0.00029995,7]
[359351153,1745949045093,-400.0,0.00029995,2]
[359351155,1745949045103,-1292.12,0.00029995,2]
[359351157,1745949045113,-400.0,0.00029995,2]
[359351159,1745949045122,-400.0,0.00029995,2]
[359351161,1745949045131,-151.0,0.00029995,7]
[359351163,1745949045140,-151.0,0.00029995,7]
[359351165,1745949045149,-400.0,0.00029995,2]
[359351167,1745949045159,-151.0,0.00029995,7]
[359351169,1745949045168,-151.0,0.00029995,7]
[359351171,1745949045177,-151.0,0.00029995,7]
[359351173,1745949045186,-400.0,0.00029995,2]
[359351174,1745949045195,-400.0,0.00029995,2]
[359351176,1745949045204,-6800.56,0.00029995,2]
[359351177,1745949045213,-412.97084177,0.00029995,2]
[359351179,1745949045223,-949.28,0.00029995,2]
[359351181,1745949045232,-400.0,0.00029995,2]
[359351183,1745949045241,-500.0,0.00029995,2]
[359351184,1745949045251,-4970.87,0.00029995,2]
[359351186,1745949045261,-400.0,0.00029995,2]
[359351187,1745949045270,-228.98375111,0.00029995,2]
[359351188,1745949045280,-2325.61,0.00029995,2]
[359351189,1745949045289,-501.19815448,0.00029995,2]
[359351190,1745949045299,-3597.03,0.00029995,2]
[359351191,1745949045308,-652.07,0.00029995,2]
[359351192,1745949045318,-500.0,0.00029995,2]
[359351193,1745949045327,-400.0,0.00029995,2]
[359351194,1745949045338,-2142.98,0.00029995,2]
[359351195,1745949045348,-500.0,0.00029995,2]
[359351197,1745949045357,-348.59003014,0.00029995,2]
[359351199,1745949045367,-400.0,0.00029995,2]
[359351200,1745949045377,-2545.62,0.00029995,2]
[359351203,1745949045387,-400.0,0.00029995,2]
[359351204,1745949045396,-400.0,0.00029995,2]
[359351206,1745949045408,-503.46991082,0.00029995,2]
[359351209,1745949045418,-1451.73,0.00029995,2]
[359351211,1745949045427,-500.0,0.00029996,2]
[359351213,1745949045437,-3604.27,0.00029996,2]
[359351215,1745949045447,-3604.27,0.00029996,2]
[359351217,1745949045456,-500.7900727,0.00029997,2]
[359351218,1745949045465,-151.0,0.00029997,7]
[359351220,1745949045474,-151.0,0.00029997,7]
[359351223,1745949045484,-151.0,0.00029997,7]
[359351225,1745949045494,-151.0,0.00029997,7]
[359351227,1745949045507,-151.0,0.00029997,7]
[359351229,1745949045517,-151.0,0.00029997,7]
[359351231,1745949045526,-151.0,0.00029997,7]
[359351233,1745949045535,-151.0,0.00029997,7]
[359351235,1745949045545,-166.717861,0.00029997,7]
[359351236,1745949045555,-166.717861,0.00029997,7]
[359351239,1745949045565,-166.717861,0.00029997,7]
[359351241,1745949045575,-166.717861,0.00029997,7]
[359351243,1745949045585,-166.717861,0.00029997,7]
[359351245,1745949045594,-166.717861,0.00029997,7]
[359351247,1745949045604,-500.0,0.00029997,2]
[359351250,1745949045614,-500.0,0.00029997,2]
[359351252,1745949045624,-500.0,0.00029997,2]
[359351253,1745949045633,-500.0,0.00029997,2]
[359351255,1745949045644,-621.57764261,0.00029997,2]
[359351257,1745949045654,-151.0,0.00029997,7]
[359351259,1745949045664,-151.0,0.00029997,7]
[359351261,1745949045673,-151.0,0.00029997,7]
[359351263,1745949045683,-151.0,0.00029997,7]
[359351265,1745949045693,-151.0,0.00029997,7]
[359351267,1745949045702,-151.0,0.00029997,7]
[359351269,1745949045712,-151.0,0.00029997,7]
[359351272,1745949045721,-151.0,0.00029997,7]
[359351274,1745949045731,-151.0,0.00029997,7]
[359351276,1745949045741,-151.0,0.00029997,7]
[359351278,1745949045751,-151.0,0.00029997,7]
[359351280,1745949045760,-151.0,0.00029997,7]
[359351282,1745949045769,-205.98457,0.00029997,7]
[359351284,1745949045779,-988.185669,0.00029997,2]
[359351286,1745949045788,-988.185669,0.00029997,2]
[359351288,1745949045798,-988.185669,0.00029997,2]
[359351290,1745949045807,-988.185669,0.00029997,2]
[359351292,1745949045816,-988.185669,0.00029997,2]
[359351294,1745949045826,-988.185669,0.00029997,2]
[359351296,1745949045837,-988.185669,0.00029997,2]
[359351298,1745949045846,-988.185669,0.00029997,2]
[359351300,1745949045855,-988.185669,0.00029997,2]
[359351302,1745949045865,-988.185669,0.00029997,2]
[359351304,1745949045874,-151.0,0.00029997,7]
[359351306,1745949045883,-151.0,0.00029997,7]
[359351308,1745949045892,-151.0,0.00029997,7]
[359351309,1745949045902,-151.0,0.00029997,7]
[359351311,1745949045953,-151.0,0.00029997,7]
[359351313,1745949045963,-205.386009,0.00029997,7]
[359351315,1745949045972,-1105.66,0.00029997,2]
[359351317,1745949045981,-1134.36,0.00029997,2]
[359351319,1745949045991,-151.0,0.00029997,7]
[359351321,1745949046000,-151.0,0.00029997,7]
[359351323,1745949046009,-151.0,0.00029997,7]
[359351325,1745949046019,-151.0,0.00029997,7]
[359351327,1745949046028,-151.0,0.00029997,7]
[359351329,1745949046038,-217.580947,0.00029997,7]
[359351331,1745949046050,-400.0,0.00029997,2]
[359351332,1745949046059,-702.77,0.00029997,2]
[359351334,1745949046067,-400.0,0.00029997,2]
[359351336,1745949046078,-4086.19,0.00029997,2]
[359351338,1745949046087,-405.04,0.00029997,2]
[359351340,1745949046096,-400.0,0.00029997,2]
[359351342,1745949046106,-1554.56,0.00029997,2]
[359351344,1745949046117,-1367.56,0.00029997,2]
[359351346,1745949046126,-400.0,0.00029997,2]
[359351348,1745949046135,-9939.19,0.00029997,2]
[359351350,1745949046144,-400.0,0.00029997,2]
[359351352,1745949046154,-3744.22,0.00029997,2]
[359351354,1745949046163,-2715.41,0.00029997,2]
[359351356,1745949046172,-819.23,0.00029997,2]
[359351358,1745949046182,-400.0,0.00029997,2]
[359351360,1745949046191,-400.0,0.00029998,2]
[359351362,1745949046200,-211.5458172,0.00029998,2]
[359351364,1745949046211,-400.0,0.00029998,2]
[359351366,1745949046220,-329.41,0.00029998,2]
[359351368,1745949046229,-205.19582217,0.00029998,2]
[359351370,1745949046239,-400.0,0.00029998,2]
[359351372,1745949046247,-400.0,0.00029998,2]
[359351374,1745949046258,-400.0,0.00029998,2]
[359351376,1745949046268,-400.0,0.00029998,2]
[359351378,1745949046277,-400.0,0.00029998,2]
[359351380,1745949046287,-400.0,0.00029998,2]
[359351383,1745949046296,-400.0,0.00029998,2]
[359351385,1745949046305,-400.0,0.00029998,2]
[359351386,1745949046314,-400.0,0.00029998,2]
[359351388,1745949046323,-400.0,0.00029998,2]
[359351390,1745949046334,-400.0,0.00029998,2]
[359351392,1745949046343,-400.0,0.00029998,2]
[359351394,1745949046352,-400.0,0.00029998,2]
[359351397,1745949046361,-400.0,0.00029998,2]
[359351399,1745949046370,-0.85091236,0.00029998,2]
[359351403,1745949046391,-399.14908764,0.00029998,2]
[359351405,1745949046401,-400.0,0.00029998,2]
[359351407,1745949046410,-500.0,0.00029998,2]
[359351409,1745949046419,-239.14590283,0.00029998,2]
[359351411,1745949046431,-160.85409717,0.00029998,2]
[359351413,1745949046440,-420.98884203,0.00029998,2]
[359351415,1745949046450,-14.6950105,0.00029998,2]
[359351417,1745949046461,-385.3049895,0.00029998,2]
[359351419,1745949046470,-400.0,0.00029998,2]
[359351421,1745949046479,-32.77873754,0.00029998,2]
[359351423,1745949046490,-367.22126246,0.00029998,2]
[359351425,1745949046500,-400.0,0.00029998,2]
[359351428,1745949046519,-400.0,0.00029998,2]
[359351430,1745949046529,-200.0,0.00029998,2]
[359351432,1745949046539,-474.05,0.00029998,2]
[359351435,1745949046549,-200.0,0.00029998,2]
[359351437,1745949046558,-485.33,0.00029998,2]
[359351439,1745949046568,-325.87447509,0.00029998,2]
[359351474,1745949046905,-500.0,0.00029963,2]
[359351476,1745949046914,-2642.90449901,0.00029996,2]
[359351478,1745949046926,-961.36550099,0.00029996,2]
[359351481,1745949046935,-1238.6309641,0.00029997,2]
[359351483,1745949046947,-990.20353383,0.00029997,2]
[359351524,1745949047331,-400.0,0.00029963,2]
[359351526,1745949047341,-601.324505,0.00029997,2]
[359358576,1745949992734,-300.0,0.00036849,120]
[359358577,1745949992759,-1000.0,0.00036986,120]
[359358578,1745949992782,-1000.0,0.00037123,120]
[359358579,1745949992809,-1000.0,0.0003726,120]
[359358580,1745949992834,-1000.0,0.00037397,120]
[359358581,1745949992860,-1000.0,0.00037534,120]
[359358582,1745949992885,-1000.0,0.00037671,120]
[359358583,1745949992910,-1000.0,0.00037808,120]
[359358584,1745949992935,-1393503.98981245,0.000379,60]
[359358585,1745949992961,-550072.89068806,0.000379,60]
[359358586,1745949992985,-1000.0,0.00037945,120]
[359358587,1745949993009,-2500.0,0.00038,120]
[359358588,1745949993034,-1000.0,0.00038082,120]
[359358589,1745949993058,-1000.0,0.00038219,120]
[359358590,1745949993083,-1000.0,0.00038356,120]
[359358591,1745949993111,-500.57407062,0.000387,90]
[359358592,1745949993138,-2000.0,0.00039,120]
[359358593,1745949993163,-2000.0,0.00039,120]
[359358594,1745949993188,-5000.0,0.00039,120]
[359358595,1745949993212,-2000.0,0.00039,120]
[359358596,1745949993237,-2000.0,0.00039,120]
[359358597,1745949993262,-2000.0,0.00039,120]
[359358598,1745949993287,-2000.0,0.00039,120]
[359358599,1745949993312,-2000.0,0.00039,120]
[359358600,1745949993339,-2000.0,0.00039,120]
[359358601,1745949993364,-2000.0,0.00039,120]
[359358602,1745949993388,-2000.0,0.00039,120]
[359358603,1745949993415,-2000.0,0.00039,120]
[359358604,1745949993439,-2000.0,0.00039,120]
[359358605,1745949993464,-2000.0,0.00039,120]
[359358606,1745949993491,-2000.0,0.00039,120]
[359358607,1745949993516,-2000.0,0.00039,120]
[359358608,1745949993541,-2000.0,0.00039,120]
[359358609,1745949993566,-2000.0,0.00039,120]
[359358610,1745949993592,-2000.0,0.00039,120]
[359358611,1745949993619,-1122.54542887,0.00039,120]
[359358612,1745950027208,-877.45457113,0.00039,120]
[359358613,1745950027232,-2000.0,0.00039,120]
[359358614,1745950027255,-2000.0,0.00039,120]
[359358615,1745950027279,-2000.0,0.00039,120]
[359358616,1745950027304,-2000.0,0.00039,120]
[359358617,1745950027328,-2000.0,0.00039,120]
[359358618,1745950027351,-2000.0,0.00039,120]
[359358619,1745950027375,-2000.0,0.00039,120]
[359358620,1745950027399,-2000.0,0.00039,120]
[359358621,1745950027426,-2000.0,0.00039,120]
[359358622,1745950027451,-2000.0,0.00039,120]
[359358623,1745950027474,-2000.0,0.00039,120]
[359358624,1745950027499,-2000.0,0.00039,120]
[359358625,1745950027524,-2000.0,0.00039,120]
[359358626,1745950027548,-2000.0,0.00039,120]
[359358627,1745950027573,-2000.0,0.00039,120]
[359358628,1745950027596,-2000.0,0.00039,120]
[359358629,1745950027619,-2000.0,0.00039,120]
[359358630,1745950027642,-2000.0,0.00039,120]
[359358631,1745950027665,-2000.0,0.00039,120]
[359358632,1745950027690,-2000.0,0.00039,120]
[359358633,1745950027716,-2000.0,0.00039,120]
[359358634,1745950027739,-2000.0,0.00039,120]
[359358635,1745950027762,-2000.0,0.00039,120]
[359358636,1745950027967,-2000.0,0.00039,120]
[359358637,1745950027995,-2000.0,0.00039,120]
[359358638,1745950028022,-2000.0,0.00039,120]
[359358639,1745950028047,-2000.0,0.00039,120]
[359358640,1745950028071,-2000.0,0.00039,120]
[359358641,1745950028096,-2000.0,0.00039,120]
[359358642,1745950028121,-2000.0,0.00039,120]
[359358643,1745950028147,-2000.0,0.00039,120]
[359358644,1745950028171,-2000.0,0.00039,120]
[359358645,1745950028195,-2000.0,0.00039,120]
[359358646,1745950028219,-2000.0,0.00039,120]
[359358647,1745950028243,-2000.0,0.00039,120]
[359358648,1745950028267,-2000.0,0.00039,120]
[359358649,1745950028291,-2000.0,0.00039,120]
[359358650,1745950028315,-2000.0,0.00039,120]
[359358651,1745950028339,-2000.0,0.00039,120]
[359358652,1745950028363,-2000.0,0.00039,120]
[359358653,1745950028386,-2000.0,0.00039,120]
[359358654,1745950028413,-2000.0,0.00039,120]
[359358655,1745950028436,-2000.0,0.00039,120]
[359358656,1745950028461,-2000.0,0.00039,120]
[359358657,1745950028487,-2000.0,0.00039,120]
[359358658,1745950028511,-2000.0,0.00039,120]
[359358659,1745950028536,-2000.0,0.00039,120]
[359358660,1745950028560,-2000.0,0.00039,120]
[359358661,1745950028585,-2000.0,0.00039,120]
[359358662,1745950028609,-971.0,0.00039,120]
[359358663,1745950028633,-100000.0,0.00039,120]
[359358664,1745950028658,-200.0,0.00039412,120]
[359358665,1745950028682,-158.82222441,0.000395,120]
[359358666,1745950028706,-158.82222439,0.000395,120]
[359358667,1745950028730,-158.82222439,0.000395,120]
[359358668,1745950028754,-158.82222439,0.000395,120]
[359358669,1745950028777,-158.82222439,0.000395,120]
[359358670,1745950028801,-158.82222439,0.000395,120]
[359358671,1745950028830,-158.82222439,0.000395,120]
[359358672,1745950028855,-158.82222439,0.000395,120]
[359358673,1745950028880,-200.0,0.00039545,120]
[359358674,1745950028904,-200.0,0.00039744,120]
[359358675,1745950028928,-2446.51036357,0.000398,60]
[359358676,1745950028953,-578.02,0.00039869,120]
[359358677,1745950028978,-796.59,0.0004,120]
[359358678,1745950029001,-2546.05493885,0.0004,120]
[359358679,1745950029024,-814.72315725,0.0004,120]
[359358680,1745950029048,-3072.28739195,0.0004,120]
[359358681,1745950029073,-1086.56117832,0.0004,120]
[359358682,1745950029097,-351.8576744,0.0004,120]
[359358683,1745950029121,-172.25707405,0.0004,60]
[359358684,1745950029144,-500.0,0.0004,120]
[359358685,1745950029168,-300.0,0.0004,120]
[359358686,1745950029192,-219.0,0.0004,120]
[359358687,1745950029215,-2730.0,0.0004,120]
[359358688,1745950029239,-411.25589635,0.0004,120]
[359358689,1745950029263,-578.02,0.00040069,120]
[359358690,1745950029296,-578.02,0.00040269,120]
[359358691,1745950029320,-578.02,0.00040469,120]
[359358692,1745950029344,-871.61429878,0.00040658,120]
[359358693,1745950029368,-578.02,0.00040669,120]
[359358694,1745950029392,-578.02,0.00040869,120]
[359358695,1745950029419,-200.0,0.00040914,120]
[359358696,1745950029443,-578.02,0.00041069,120]
[359358697,1745950029469,-150.5,0.0004107,120]
[359358698,1745950029493,-150.5,0.0004107,120]
[359358699,1745950029517,-1550.0,0.0004107,120]
[359358700,1745950029541,-1550.0,0.0004107,120]
[359358701,1745950029567,-150.5,0.0004108,120]
[359358702,1745950029590,-150.5,0.0004108,120]
[359358703,1745950029614,-219.48,0.0004108,120]
[359358704,1745950029637,-196.52,0.0004108,120]
[359358705,1745950029662,-1550.0,0.0004108,120]
[359358706,1745950029685,-1550.0,0.0004108,120]
[359358707,1745950029710,-1550.0,0.0004108,120]
[359358708,1745950029736,-1552.48,0.0004108,120]
[359358709,1745950029761,-150.5,0.0004109,120]
[359358710,1745950029784,-150.5,0.0004109,120]
[359358711,1745950029807,-150.5,0.0004109,120]
[359358712,1745950029835,-150.5,0.0004109,120]
[359358713,1745950029858,-1550.0,0.0004109,120]
[359358714,1745950029881,-1550.0,0.0004109,120]
[359358715,1745950029906,-1550.0,0.0004109,120]
[359358716,1745950029929,-1550.0,0.0004109,120]
[359358717,1745950029960,-578.02,0.00041269,120]
[359358718,1745950029985,-578.02,0.00041469,120]
[359358719,1745950030009,-200.0,0.00041589,120]
[359358720,1745950030034,-578.02,0.00041669,120]
[359358721,1745950030059,-200.0,0.00041734,120]
[359358722,1745950030084,-578.02,0.00041869,120]
[359358723,1745950030108,-200.0,0.00041928,120]
[359358724,1745950030132,-678.21145682,0.00042,120]
[359358725,1745950030159,-300.0,0.00042,120]
[359358726,1745950030183,-1500.0,0.00042,60]
[359358727,1745950030206,-1097.78747022,0.00042,120]
[359358728,1745950030229,-2747.90111004,0.00042,120]
[359358729,1745950030387,-578.02,0.00042069,120]
[359358730,1745950030418,-200.0,0.00042201,120]
[359358731,1745950030443,-578.02,0.00042269,120]
[359358732,1745950030468,-578.02,0.00042469,120]
[359358733,1745950030496,-200.0,0.00042474,120]
[359358734,1745950030521,-200.0,0.00042607,120]
[359358735,1745950030546,-578.02,0.00042669,120]
[359358736,1745950030573,-578.02,0.00042869,120]
[359358737,1745950030597,-376.60480117,0.00043,120]
[359358738,1745950030620,-1385.87875829,0.00043,120]
[359358739,1745950030652,-578.02,0.00043069,120]
[359358740,1745950030677,-200.0,0.00043081,120]
[359358741,1745950030702,-578.02,0.00043269,120]
[359358742,1745950030727,-200.0,0.0004344,120]
[359358743,1745950030750,-578.02,0.00043469,120]
[359358744,1745950030774,-3000.0,0.0004366,60]
[359358745,1745950030799,-578.02,0.00043669,120]
[359358746,1745950030823,-200.0,0.00043723,120]
[359358747,1745950030848,-2000.0,0.00043835,120]
[359358748,1745950030875,-578.02,0.00043869,120]
[359358749,1745950030902,-317.0,0.00044,120]
[359358750,1745950030928,-578.02,0.00044069,120]
[359358751,1745950030952,-3000.0,0.00044208,120]
[359358752,1745950030977,-578.02,0.00044269,120]
[359358753,1745950031002,-2000.0,0.00044383,120]
[359358754,1745950031026,-578.02,0.00044469,120]
[359358755,1745950031050,-3000.0,0.00044482,120]
[359358756,1745950031076,-200.0,0.00044522,120]
[359358757,1745950031101,-200.0,0.00044549,120]
[359358758,1745950031127,-578.02,0.00044669,120]
[359358759,1745950031152,-3000.0,0.00044756,120]
[359358760,1745950031176,-578.02,0.00044869,120]
[359358761,1745950031200,-1000.0,0.000449,120]
[359358762,1745950031225,-2000.0,0.00044931,120]
[359358763,1745950031249,-200.0,0.00044984,120]
[359358764,1745950031276,-151.0,0.00045,120]
[359358765,1745950031301,-100000.0,0.00045,60]
[359358766,1745950031327,-1567.01671,0.00045,120]
[359358767,1745950031353,-160.63804872,0.00045,120]
[359358768,1745950031378,-2235.78265628,0.00045,60]
[359358769,1745950031412,-2893.4194055,0.00045,120]
[359358770,1745950031436,-363.42303071,0.00045,120]
[359358771,1745950031460,-2000.0,0.00045,120]
[359358772,1745950031485,-1500.0,0.00045,120]
[359358773,1745950031509,-711.2978023,0.00045,120]
[359358774,1745950031534,-25735.78544918,0.00045,120]
[359358775,1745950031559,-5000.0,0.00045,80]
[359358776,1745950031584,-714.03057168,0.00045,120]
[359358777,1745950031609,-3000.0,0.0004503,120]
[359358778,1745950031635,-578.02,0.00045069,120]
[359358779,1745950031663,-578.02,0.00045269,120]
[359358780,1745950031686,-3000.0,0.00045304,120]
[359358781,1745950031711,-200.0,0.00045334,120]
[359358782,1745950031735,-578.02,0.00045469,120]
[359358783,1745950031759,-2000.0,0.00045479,120]
[359358784,1745950031784,-3000.0,0.00045578,120]
[359358785,1745950031809,-578.02,0.00045669,120]
[359358786,1745950031836,-3000.0,0.00045852,120]
[359358787,1745950031861,-578.02,0.00045869,120]
[359358788,1745950031885,-328.07976617,0.000459,120]
[359358789,1745950031912,-3333.3829255,0.00046,120]
[359358790,1745950031936,-1655.38965547,0.00046,120]
[359358791,1745950031960,-200.0,0.00046,60]
[359358792,1745950031985,-300.0,0.00046,120]
[359358793,1745950032009,-8996.8,0.00046,120]
[359358794,1745950032033,-2000.0,0.00046027,120]
[359358795,1745950032058,-578.02,0.00046069,120]
[359358796,1745950032082,-3000.0,0.00046126,120]
[359358797,1745950032106,-1484.97924331,0.000462,120]
[359358798,1745950032129,-578.02,0.00046269,120]
[359358799,1745950032154,-3000.0,0.000464,120]
[359358800,1745950032177,-578.02,0.00046469,120]
[359358801,1745950032200,-510.65918369,0.00046575,120]
[359358802,1745950032223,-1000.0,0.00046575,120]
[359358803,1745950032247,-2848.0,0.00046575,120]
[359358804,1745950032270,-1000.0,0.00046602,120]
[359358805,1745950032293,-1000.0,0.0004663,120]
[359358806,1745950032317,-1000.0,0.00046657,120]
[359358807,1745950032340,-578.02,0.00046669,120]
[359358808,1745950032363,-3000.0,0.00046674,120]
[359358809,1745950032386,-1000.0,0.00046684,120]
[359358810,1745950032413,-200.0,0.0004669,120]
[359358811,1745950032437,-200.0,0.00046694,120]
[359358812,1745950032462,-1000.0,0.00046712,120]
[359358813,1745950032486,-1000.0,0.00046739,120]
[359358814,1745950032510,-1000.0,0.00046767,120]
[359358815,1745950032534,-1000.0,0.00046794,120]
[359358816,1745950032557,-1000.0,0.00046821,120]
[359358817,1745950032582,-1000.0,0.00046849,120]
[359358818,1745950032607,-578.02,0.00046869,120]
[359358819,1745950032631,-200.0,0.00046875,120]
[359358820,1745950032656,-1000.0,0.00046876,120]
[359358821,1745950032680,-1000.0,0.00046904,120]
[359358822,1745950032704,-1000.0,0.00046931,120]
[359358823,1745950032727,-3000.0,0.00046948,120]
[359358824,1745950032883,-1000.0,0.00046958,120]
[359358825,1745950032913,-1000.0,0.00046986,120]
[359358826,1745950032937,-954.13583079,0.00047,120]
[359358827,1745950032960,-295.9785749,0.00047,120]
[359358828,1745950032984,-200.0,0.00047,60]
[359358829,1745950033009,-200.0,0.00047,60]
[359358830,1745950033032,-1000.0,0.00047013,120]
[359358831,1745950033057,-659.27075832,0.00047041,120]
[359358832,1745950033081,-578.02,0.00047069,120]
[359358833,1745950033106,-200.0,0.00047078,120]
[359358834,1745950033130,-3000.0,0.00047222,120]
[359358835,1745950033155,-578.02,0.00047269,120]
[359358836,1745950033180,-578.02,0.00047469,120]
[359358837,1745950033204,-3000.0,0.00047496,120]
[359358838,1745950033228,-578.02,0.00047669,120]
[359358839,1745950033251,-191.61638136,0.000477,120]
[359358840,1745950033275,-3000.0,0.0004777,120]
[359358841,1745950033300,-578.02,0.00047869,120]
[359358842,1745950033324,-283.61190769,0.000479,120]
[359358843,1745950033347,-2708.64468182,0.00048,120]
[359358844,1745950033370,-200.0,0.00048,60]
[359358845,1745950033394,-300.0,0.00048,120]